bitfinex/quotes_ETHUSD_20250622
["timestamp","ask_amount","ask_price","bid_price","bid_amount"]
[1750613350558,8.013,2190.8,2190.5,0.0142]
[1750613351239,8.013,2190.8,2190.4,1.1744]
[1750613351443,8.013,2190.8,2190.5,0.0598]
[1750613351858,8.011,2190.7,2190.5,0.0598]
[1750613352046,8.011,2190.7,2190.4,1.1744]
[1750613352463,8.011,2190.7,2190.5,0.0598]
[1750613352668,8.011,2190.7,2190.4,1.1744]
[1750613353053,8.011,2190.7,2190.5,0.0598]
[1750613353575,8.01,2190.6,2190.5,0.0598]
[1750613355341,8.01,2190.6,2190.4,1.2342]
[1750613356470,8.01,2190.6,2190.4,1.1744]
[1750613356672,8.01,2190.6,2190.5,0.0598]
[1750613357984,10.176,2190.9,2190.5,0.0598]
[1750613358287,8.008,2190.6,2190.5,0.0598]
[1750613360086,8.008,2190.6,2190.4,1.1744]
[1750613360385,8.008,2190.6,2190.3,0.005]
[1750613360551,8.008,2190.6,2190.3,0.0648]
[1750613361091,8.008,2190.6,2190.4,0.0598]
[1750613362657,8.008,2190.6,2190.3,0.005]
[1750613362863,8.008,2190.6,2190.4,0.0583]
[1750613363190,8.008,2190.6,2190.3,0.005]
[1750613363593,8.008,2190.6,2190.4,0.0583]
[1750613363797,8.008,2190.6,2190.3,0.005]
[1750613364097,8.008,2190.6,2190.4,0.0583]
[1750613364271,8.008,2190.6,2190.3,0.005]
[1750613364272,8.9192,2190.6,2190.3,0.005]
[1750613364591,8.9192,2190.6,2190.3,0.0633]
[1750613364789,8.9192,2190.6,2190.4,0.0583]
[1750613364992,8.008,2190.6,2190.4,1.1209]
[1750613365194,8.00475568,2190.6,2190.5,0.0583]
[1750613365395,8.003,2190.6,2190.4,1.1209]
[1750613365590,8.003,2190.6,2190.5,0.0583]
[1750613366296,8.003,2190.6,2190.4,1.1209]
[1750613366598,8.003,2190.6,2190.5,0.0583]
[1750613366809,8.003,2190.6,2190.3,0.005]
[1750613366963,8.003,2190.6,2190.4,0.0583]
[1750613367365,8.00005691,2190.6,2190.4,0.0583]
[1750613368920,8.00005691,2190.6,2190.3,0.005]
[1750613369121,7.91,2190.9,2190.4,0.0583]
[1750613369316,10.255,2190.8,2190.4,0.0583]
[1750613369501,2.254,2191.0,2190.5,1.1448]
[1750613369827,8.0,2190.7,2190.6,0.0583]
[1750613369980,2.254,2191.0,2190.6,0.0583]
[1750613370180,7.999,2190.9,2190.6,0.0583]
[1750613370887,7.999,2190.9,2190.5,1.1448]
[1750613371507,7.999,2190.9,2190.6,0.0583]
[1750613371819,11.2034,2191.2,2190.6,0.0583]
[1750613372116,2.254,2191.0,2190.6,0.0583]
[1750613372275,9.1134,2191.4,2190.8,0.0583]
[1750613372476,7.997,2191.3,2190.9,1.1448]
[1750613372675,10.164,2191.4,2191.0,0.0583]
[1750613373010,7.997,2191.3,2191.1,0.0583]
[1750613373703,7.997,2191.3,2190.9,1.1448]
[1750613373911,7.997,2191.3,2191.0,0.0583]
[1750613374118,7.997,2191.3,2190.9,1.1448]
[1750613374513,7.997,2191.3,2191.0,0.0583]
[1750613374720,7.997,2191.3,2190.9,1.1448]
[1750613375034,7.997,2191.3,2191.0,0.0583]
[1750613375189,7.997,2191.3,2190.9,1.1448]
[1750613375633,7.997,2191.3,2191.0,0.0583]
[1750613376133,1.2034,2191.7,2191.0,0.0583]
[1750613376291,10.248,2191.6,2191.0,0.0583]
[1750613378222,1.2034,2191.7,2191.0,0.0583]
[1750613378527,10.973,2192.0,2191.2,0.0583]
[1750613378528,10.245,2191.6,2191.2,0.0583]
[1750613378827,7.991,2191.5,2191.2,0.0583]
[1750613379727,7.991,2191.5,2190.7,18.32991811]
[1750613379728,2.254,2191.8,2191.4,0.0583]
[1750613380033,7.991,2191.7,2191.4,0.0583]
[1750613380342,7.991,2191.7,2191.3,1.1928]
[1750613380839,7.99,2191.6,2191.4,0.0583]
[1750613381195,10.971,2192.3,2190.7,18.32991693]
[1750613381196,1.82092041,2192.4,2191.5,1.1928]
[1750613381432,0.44916241,2192.4,2191.8,0.0583]
[1750613381618,7.989,2192.3,2191.8,0.0583]
[1750613381840,7.989,2192.3,2191.7,1.1928]
[1750613381841,0.7989,2192.2,2191.7,1.1928]
[1750613382005,1.1076,2192.1,2191.5,1.2511]
[1750613382212,10.243,2192.3,2191.6,0.0583]
[1750613382411,7.988,2192.2,2191.8,0.0583]
[1750613382730,7.988,2192.1,2192.0,1.2203]
[1750613382931,7.987,2192.1,2192.0,1.2203]
[1750613383131,2.253,2192.6,2192.0,1.2203]
[1750613383132,1.1296,2192.9,2192.0,1.2203]
[1750613383329,11.35296,2192.8,2192.1,0.0583]
[1750613383525,7.987,2192.7,2192.1,0.0583]
[1750613383844,1.11296,2192.8,2192.1,0.0583]
[1750613384040,7.986,2192.7,2192.3,0.0583]
[1750613384246,1.1296,2192.9,2192.2,1.2203]
[1750613384447,7.985,2192.8,2192.3,0.0583]
[1750613384817,7.91,2193.2,2192.5,0.0583]
[1750613385158,10.238,2193.1,2192.5,0.0583]
[1750613385345,1.0238,2193.0,2192.4,1.2203]
[1750613386048,2.1534,2193.0,2192.5,0.0583]
[1750613386346,0.23795438,2193.7,2192.6,1.2203]
[1750613386544,2.12327438,2194.1,2192.0,2.71338562]
[1750613386545,1.1296,2193.8,2192.9,1.2786]
[1750613386747,11.1296,2193.4,2192.7,0.0583]
[1750613386953,2.253,2193.3,2192.7,0.0583]
[1750613387317,1.1296,2193.4,2192.7,0.0583]
[1750613387672,10.235,2193.3,2192.7,0.0583]
[1750613388924,10.0,2193.2,2192.6,1.2203]
[1750613389129,1.1296,2193.4,2192.7,0.0583]
[1750613389343,17.98,2193.3,2192.7,0.0583]
[1750613390249,17.98,2193.3,2192.8,1.1775]
[1750613390779,1.125,2193.7,2192.9,0.04559888]
[1750613391059,7.979,2193.6,2193.2,1.1966]
[1750613391363,2.253,2193.7,2193.3,0.0583]
[1750613391526,2.253,2193.7,2193.2,1.1966]
[1750613391727,1.1901,2194.1,2193.3,0.0583]
[1750613391951,10.23,2194.0,2193.5,0.0583]
[1750613392153,10.0,2193.9,2193.5,0.0566]
[1750613392354,2.252,2194.0,2193.5,0.0566]
[1750613392565,7.978,2193.9,2193.6,0.0566]
[1750613392736,7.978,2193.9,2193.5,0.0566]
[1750613393171,9.1001,2194.4,2193.6,1.1966]
[1750613393172,7.976,2193.8,2193.6,1.1966]
[1750613394063,2.252,2194.1,2193.6,1.2532]
[1750613394363,7.976,2194.0,2193.6,1.1966]
[1750613394673,7.976,2194.0,2193.7,0.0566]
[1750613394961,10.0,2194.3,2193.7,0.0566]
[1750613395171,10.227,2194.2,2193.7,0.89780989]
[1750613395462,7.975,2194.1,2193.9,1.2532]
[1750613395664,10.0,2194.3,2193.9,1.1966]
[1750613395958,7.91,2194.4,2193.9,1.1966]
[1750613395959,7.973,2194.2,2193.9,1.1966]
[1750613396160,10.162,2194.4,2193.9,1.1966]
[1750613396161,7.973,2194.1,2194.0,0.0566]
[1750613396368,10.0,2194.3,2194.0,0.0566]
[1750613396583,7.973,2194.2,2194.0,0.0566]
[1750613396784,7.973,2194.2,2193.9,1.1966]
[1750613396948,7.973,2194.2,2194.0,0.0566]
[1750613397579,7.973,2194.2,2193.9,1.1966]
[1750613398375,7.973,2194.2,2194.0,0.0566]
[1750613398873,7.971,2194.1,2193.9,1.1966]
[1750613399190,7.971,2194.1,2194.0,0.0566]
[1750613399341,10.962,2194.7,2194.1,0.0566]
[1750613399544,10.962,2194.7,2194.0,1.1966]
[1750613399740,17.969,2194.6,2193.7,14.0564793]
[1750613399974,17.969,2194.6,2194.0,0.0566]
[1750613399975,7.969,2194.6,2194.0,0.0566]
[1750613400285,7.969,2194.6,2194.2,0.0566]
[1750613400286,10.0,2194.6,2194.2,0.0566]
[1750613400446,7.969,2194.5,2194.2,0.0566]
[1750613400647,7.969,2194.4,2194.2,0.0566]
[1750613400943,13.2,2194.7,2194.2,0.0566]
[1750613400944,7.968,2194.3,2194.2,0.0566]
[1750613401165,7.968,2194.3,2194.1,1.2532]
[1750613401373,7.968,2194.3,2194.1,1.1966]
[1750613401581,7.968,2194.3,2194.2,0.0566]
[1750613402348,7.968,2194.3,2193.7,1.1966]
[1750613402554,7.968,2194.3,2193.5,7.15889888]
[1750613402555,10.0,2194.1,2193.5,7.15889888]
[1750613402746,10.63681147,2194.1,2193.5,7.15889888]
[1750613402944,9.1001,2194.2,2193.6,1.2102]
[1750613403179,7.966,2194.1,2193.7,0.04558479]
[1750613403349,7.966,2194.1,2193.8,0.0566]
[1750613404080,7.966,2194.1,2194.0,0.0566]
[1750613404557,7.966,2194.3,2194.0,0.10217657]
[1750613404746,13.2,2194.7,2194.0,0.10217657]
[1750613404747,10.962,2194.7,2194.0,0.0566]
[1750613404949,1.1256,2195.5,2194.5,0.55]
[1750613405158,3.3636,2195.8,2194.8,1.1536]
[1750613405357,7.965,2195.3,2195.0,0.0566]
[1750613405688,7.965,2195.3,2194.8,1.1536]
[1750613405862,7.965,2195.3,2194.9,0.0566]
[1750613406189,7.965,2195.3,2194.8,1.1536]
[1750613406482,7.965,2195.3,2195.1,0.0566]
[1750613406693,7.964,2195.4,2195.1,0.65215147]
[1750613406851,0.0928,2195.2,2195.1,2.82541515]
[1750613407054,0.0928,2195.2,2195.1,7.38101626]
[1750613407291,10.9997,2196.4,2195.7,0.0566]
[1750613407292,0.0609,2196.4,2195.7,0.0566]
[1750613407600,7.962,2196.1,2195.7,0.45669477]
[1750613407802,8.0229,2196.0,2195.6,1.1536]
[1750613407979,0.0609,2196.9,2195.8,1.1097]
[1750613408156,0.0609,2196.7,2195.8,1.1097]
[1750613408757,0.0609,2196.7,2195.9,0.04553293]
[1750613408986,7.961,2196.6,2195.9,0.04553293]
[1750613409191,10.0,2196.5,2195.9,0.04553293]
[1750613409499,7.961,2196.6,2195.9,0.04553293]
[1750613409686,0.86309,2196.5,2195.8,1.1097]
[1750613409988,10.86309,2196.5,2195.8,1.1097]
[1750613410960,2.237,2196.6,2195.8,1.1097]
[1750613411284,0.0609,2196.3,2195.2,1.176]
[1750613411461,0.0609,2196.3,2195.3,0.04554145]
[1750613411462,10.0609,2196.3,2195.3,0.04554145]
[1750613411663,0.0609,2196.3,2195.5,1.176]
[1750613411999,7.958,2196.3,2195.8,0.55]
[1750613412712,0.0609,2196.6,2195.8,0.6066]
[1750613412892,7.958,2196.5,2195.9,1.1547]
[1750613413270,7.957,2196.4,2195.9,1.1547]
[1750613413492,0.7957,2196.3,2195.9,1.1547]
[1750613413659,7.957,2196.4,2195.9,1.1547]
[1750613413860,7.957,2196.4,2196.0,0.10213421]
[1750613414094,7.957,2196.4,2195.9,1.2113]
[1750613414264,7.957,2196.4,2196.0,0.10212963]
[1750613415002,8.0179,2196.4,2195.9,1.1547]
[1750613415159,7.957,2196.4,2195.9,1.1547]
[1750613415360,8.75879,2196.4,2195.9,1.1547]
[1750613415578,0.0609,2196.3,2195.6,1.1547]
[1750613415775,0.0609,2196.2,2195.6,1.1547]
[1750613416112,10.0,2196.3,2195.7,0.04554047]
[1750613416398,10.2519,2196.2,2195.6,1.1547]
[1750613418001,0.0609,2196.2,2195.6,1.1547]
[1750613418165,0.0609,2196.7,2195.8,0.0566]
[1750613418361,10.0,2196.5,2195.9,1.1435]
[1750613418598,10.0,2196.5,2196.0,0.04553222]
[1750613418861,10.0609,2196.5,2196.0,0.04553222]
[1750613419087,10.0609,2196.5,2195.9,1.1435]
[1750613419088,10.0,2196.5,2195.9,1.1435]
[1750613419285,0.0609,2196.4,2195.9,1.1435]
[1750613419685,10.0,2196.5,2195.9,1.1435]
[1750613420137,0.0609,2196.7,2195.9,1.2001]
[1750613420422,10.0609,2196.5,2195.9,1.1435]
[1750613420624,0.0609,2196.4,2195.9,1.1435]
[1750613420796,0.0609,2196.2,2195.6,1.1435]
[1750613420996,8.0119,2196.1,2195.6,1.1435]
[1750613421199,7.951,2196.1,2195.6,1.1435]
[1750613421682,0.0609,2196.4,2195.6,1.1435]
[1750613421888,7.95,2196.3,2195.7,0.04553691]
[1750613422110,7.95,2196.2,2195.9,1.1435]
[1750613422320,7.95,2196.2,2196.0,0.04553199]
[1750613422504,0.0618,2196.7,2196.0,0.55]
[1750613422731,7.95,2196.6,2196.1,1.1583]
[1750613423009,7.95,2196.6,2196.1,1.78452292]
[1750613423217,7.95,2196.6,2196.1,8.92566167]
[1750613423395,2.236,2196.8,2196.2,0.04552528]
[1750613423603,7.95,2196.7,2196.4,0.55]
[1750613424013,8.0118,2196.7,2196.3,1.1583]
[1750613424215,0.795,2196.7,2196.3,1.1583]
[1750613424419,2.236,2196.9,2196.4,0.55]
[1750613424724,0.0618,2197.2,2196.5,1.1583]
[1750613424934,7.949,2197.1,2196.5,1.1583]
[1750613425088,7.949,2197.1,2196.5,8.29943875]
[1750613426226,0.0618,2197.0,2196.5,8.29943875]
[1750613426527,8.0098,2196.9,2196.5,8.29943875]
[1750613427429,7.948,2196.9,2196.5,8.35953875]
[1750613427793,8.0098,2196.9,2196.6,7.14113875]
[1750613428511,7.948,2196.9,2196.6,7.14113875]
[1750613429433,7.946,2196.8,2196.6,7.18665723]
[1750613429727,7.946,2197.0,2196.7,1.1732]
[1750613430027,7.946,2197.0,2196.8,0.045516]
[1750613430529,7.946,2197.2,2196.9,1.1732]
[1750613431327,8.0078,2197.2,2196.9,1.1732]
[1750613431543,8.74678,2197.2,2196.7,7.14113875]
[1750613431939,0.0618,2197.1,2196.7,7.14113875]
[1750613432238,8.74678,2197.2,2196.7,7.14113875]
[1750613432641,0.0618,2197.1,2196.7,7.14113875]
[1750613432939,7.944,2197.0,2196.7,7.14113875]
[1750613433143,0.0618,2197.4,2196.9,1.1962]
[1750613433331,2.2888,2197.7,2197.0,0.04551071]
[1750613433703,8.0058,2197.6,2197.1,1.1962]
[1750613434344,0.0618,2197.5,2197.1,1.1962]
[1750613434641,0.0618,2197.4,2196.8,8.33733875]
[1750613434845,0.0618,2197.4,2196.8,8.39743875]
[1750613435051,7.943,2197.3,2196.9,0.10560918]
[1750613435246,7.943,2197.3,2197.0,1.30180984]
[1750613435415,7.943,2197.3,2197.0,1.1962]
[1750613435617,7.943,2197.3,2197.0,9.17708262]
[1750613435951,7.943,2197.2,2197.0,8.33733875]
[1750613436114,7.942,2197.2,2197.0,8.39743875]
[1750613436312,7.942,2197.3,2197.0,8.39743875]
[1750613436564,7.942,2197.3,2197.2,0.0601]
[1750613436843,0.0618,2197.8,2197.2,1.2563]
[1750613437064,0.0618,2197.8,2197.2,8.39743875]
[1750613437272,7.942,2197.7,2197.2,8.39743875]
[1750613437555,7.942,2197.7,2197.3,7.14113875]
[1750613437969,0.0618,2197.6,2197.3,7.14113875]
[1750613439165,8.0038,2197.7,2197.3,7.14113875]
[1750613439369,8.0038,2197.7,2197.3,7.97487262]
[1750613439512,7.94,2197.6,2197.3,8.03497262]
[1750613440956,13.4043801,2198.0,2197.3,8.03497262]
[1750613440957,0.2303801,2198.0,2197.5,1.1834]
[1750613441129,0.2303801,2198.0,2197.3,7.14113875]
[1750613441130,7.939,2197.9,2197.3,7.14113875]
[1750613441451,0.0618,2197.5,2197.3,7.14113875]
[1750613441666,7.939,2197.4,2197.3,7.14113875]
[1750613441869,8.0008,2197.4,2197.3,7.14113875]
[1750613447293,18.0008,2197.4,2197.3,7.14113875]
[1750613448050,32.32766941,2197.4,2197.3,7.14113875]
[1750613448251,33.13702747,2197.4,2197.3,7.14113875]
[1750613449162,33.68702747,2197.4,2197.3,7.14113875]
[1750613450453,33.68702747,2197.4,2196.2,1.1778]
[1750613450454,0.55,2197.1,2196.2,1.1778]
[1750613450658,0.0618,2196.7,2195.9,1.1778]
[1750613450998,1.1116,2196.4,2195.9,1.1778]
[1750613451168,0.0618,2196.2,2195.9,1.1778]
[1750613451568,7.936,2196.3,2195.9,1.1778]
[1750613451569,1.92853801,2196.7,2196.0,0.0601]
[1750613451804,0.0618,2197.0,2196.3,1.1778]
[1750613452109,7.935,2196.9,2196.3,1.1778]
[1750613453002,10.0,2196.8,2196.4,0.0602]
[1750613453300,10.0,2196.8,2196.3,1.238]
[1750613453456,10.0,2196.8,2196.4,0.0602]
[1750613453884,7.935,2196.7,2196.4,0.0602]
[1750613454088,7.9916,2196.7,2196.3,1.1778]
[1750613454360,0.0566,2196.6,2196.3,1.1778]
[1750613454560,7.935,2196.7,2196.3,1.1778]
[1750613454788,7.9916,2196.7,2196.3,1.1778]
[1750613455099,7.935,2196.6,2196.3,1.1778]
[1750613455316,7.935,2196.5,2196.4,0.0602]
[1750613456688,0.0566,2197.2,2196.5,1.2108]
[1750613456898,10.162,2197.1,2196.5,1.2108]
[1750613457196,7.935,2197.0,2196.5,1.2108]
[1750613457407,1.1856,2197.3,2196.6,0.07732124]
[1750613457702,0.0566,2197.4,2196.9,1.1159]
[1750613457906,7.934,2197.3,2196.9,1.1477]
[1750613458354,7.934,2197.2,2196.9,1.1477]
[1750613458559,0.0566,2197.4,2196.9,1.1477]
[1750613458891,2.227,2197.6,2196.9,1.1477]
[1750613459068,7.934,2197.3,2197.0,0.0318]
[1750613459274,7.934,2197.2,2197.1,1.1159]
[1750613459580,7.934,2197.2,2197.1,1.1477]
[1750613459779,7.934,2197.2,2197.1,1.1159]
[1750613460195,7.934,2197.2,2196.7,1.1159]
[1750613460496,7.934,2197.2,2196.8,1.11159]
[1750613460992,7.9906,2197.2,2196.8,1.11159]
[1750613461292,7.934,2197.2,2196.8,1.18890781]
[1750613461664,0.0566,2197.1,2196.7,1.1159]
[1750613461866,0.0566,2197.1,2196.4,1.1159]
[1750613461867,0.0566,2197.0,2196.4,1.1159]
[1750613462060,0.0566,2197.0,2196.2,1.36836]
[1750613462061,0.0566,2196.9,2196.2,1.36836]
[1750613462295,0.0566,2196.9,2196.1,1.1159]
[1750613462499,0.0566,2196.7,2196.1,1.1159]
[1750613463586,17.9666,2197.0,2196.2,0.04553194]
[1750613463938,7.932,2196.9,2196.3,0.0602]
[1750613464074,7.932,2196.8,2196.4,1.2189]
[1750613464424,7.932,2196.8,2196.5,0.0602]
[1750613464600,7.932,2196.8,2196.5,0.04552423]
[1750613464811,7.932,2196.8,2196.5,0.5817427]
[1750613465137,7.932,2196.8,2196.5,0.0602]
[1750613465423,7.932,2196.8,2196.4,1.2189]
[1750613466818,7.91,2197.0,2196.5,0.0318]
[1750613467022,7.91,2197.4,2196.6,0.0318]
[1750613467317,2.221,2197.7,2197.1,1.2189]
[1750613467515,0.0566,2197.5,2197.1,1.2189]
[1750613469153,0.0566,2197.6,2197.1,1.2507]
[1750613469349,7.931,2197.4,2197.1,1.2507]
[1750613469638,1.1579,2197.9,2197.1,1.2507]
[1750613469838,0.0566,2197.8,2197.1,1.2507]
[1750613470039,7.929,2197.7,2197.1,1.2507]
[1750613470247,0.0566,2197.6,2197.1,1.2189]
[1750613471354,7.929,2197.7,2197.1,1.2189]
[1750613472055,3.3779,2197.9,2197.1,1.2189]
[1750613472056,7.928,2197.6,2197.1,1.2189]
[1750613472526,0.0566,2197.5,2197.1,1.2189]
[1750613472910,3.3779,2197.4,2196.8,1.2189]
[1750613473315,0.0566,2197.3,2196.8,1.2189]
[1750613473513,0.0566,2197.3,2196.5,1.2189]
[1750613473748,7.91,2197.3,2196.5,1.2189]
[1750613473947,0.0566,2197.2,2196.5,1.2189]
[1750613474149,7.927,2197.1,2196.5,1.2189]
[1750613474657,7.91,2197.3,2196.6,0.59552173]
[1750613474827,7.91,2197.3,2196.5,1.2791]
[1750613474828,7.927,2197.0,2196.5,1.2791]
[1750613475028,0.0566,2196.9,2196.5,1.2189]
[1750613476046,0.0566,2196.8,2196.0,0.0602]
[1750613476267,0.0566,2196.8,2196.0,1.2365]
[1750613476468,0.0566,2196.8,2196.0,11.2365]
[1750613476673,0.0566,2196.8,2196.0,1.2365]
[1750613476875,0.0566,2196.7,2196.0,1.1763]
[1750613477979,0.0566,2196.6,2196.0,1.1763]
[1750613478190,7.926,2196.5,2196.0,1.1763]
[1750613478363,7.9826,2196.5,2196.0,1.1763]
[1750613478562,0.0566,2196.4,2196.0,1.1763]
[1750613478779,7.926,2196.5,2196.0,1.2365]
[1750613479685,7.926,2196.4,2196.0,1.1763]
[1750613479875,7.926,2196.4,2196.2,1.236]
[1750613480056,7.926,2196.3,2196.2,1.2962]
[1750613480559,7.9666,2196.7,2196.2,1.2962]
[1750613480560,7.91,2196.7,2196.2,1.2962]
[1750613480889,2.221,2197.4,2196.6,1.7073]
[1750613481091,7.925,2197.0,2196.9,1.1573]
[1750613481258,7.925,2197.0,2196.9,1.2175]
[1750613481655,24.15626941,2198.1,2196.9,1.2175]
[1750613481656,7.9666,2197.9,2197.0,0.0602]
[1750613481857,7.9666,2197.9,2197.2,0.0602]
[1750613481858,7.925,2197.8,2197.2,0.0602]
[1750613482195,7.925,2197.8,2197.1,1.7073]
[1750613482196,10.0,2197.7,2197.1,1.7073]
[1750613482395,10.0,2197.7,2197.3,0.0564]
[1750613482580,7.925,2197.8,2197.3,0.0564]
[1750613482956,5.44833864,2197.7,2197.3,0.0564]
[1750613483293,2.2776,2197.9,2197.1,1.2137]
[1750613483294,2.221,2197.9,2197.1,1.2137]
[1750613483591,7.925,2197.8,2197.1,1.2137]
[1750613483980,7.925,2197.8,2197.1,1.66498106]
[1750613484495,7.925,2197.8,2197.2,1.2179]
[1750613484657,7.924,2197.7,2197.3,0.0564]
[1750613485053,7.924,2197.7,2197.2,1.2179]
[1750613485258,0.0598,2197.6,2197.2,1.2179]
[1750613485491,8.7762,2197.7,2197.2,1.2743]
[1750613485990,0.0598,2197.6,2197.2,1.2179]
[1750613486396,0.0598,2197.4,2196.5,0.0564]
[1750613486555,7.923,2197.3,2196.5,0.10191971]
[1750613486759,7.923,2197.2,2196.5,0.10191971]
[1750613486994,7.923,2197.2,2196.6,1.2179]
[1750613488286,7.923,2197.2,2196.6,1.66933414]
[1750613490001,7.9828,2197.2,2196.6,1.2179]
[1750613490210,16.66689607,2197.2,2196.6,1.2179]
[1750613490409,16.66689607,2197.2,2196.2,0.6064]
[1750613490410,0.0598,2197.1,2196.3,1.2084]
[1750613490600,0.0598,2196.9,2196.3,1.2084]
[1750613490914,10.1838,2196.9,2196.3,1.2084]
[1750613491214,10.9762,2196.9,2196.3,1.2084]
[1750613491780,10.9762,2196.9,2195.9,0.0564]
[1750613491781,0.0598,2196.8,2195.9,0.0564]
[1750613492004,7.921,2196.7,2196.0,1.1992]
[1750613492312,0.0598,2196.6,2196.0,1.1992]
[1750613492616,7.921,2196.5,2196.0,1.1992]
[1750613492805,7.921,2196.4,2196.2,0.0321]
[1750613493034,7.921,2196.4,2196.0,1.1992]
[1750613493203,0.0598,2196.3,2196.0,2.36549841]
[1750613493402,7.921,2196.4,2196.0,2.36549841]
[1750613493717,0.0598,2196.3,2196.0,1.1992]
[1750613495239,7.921,2196.4,2196.0,1.1992]
[1750613495404,7.921,2196.4,2196.0,1.2313]
[1750613495740,7.92,2196.3,2196.0,1.1992]
[1750613495940,7.92,2196.3,2196.1,0.0321]
[1750613496437,7.92,2196.3,2196.0,1.1992]
[1750613497041,7.91,2196.9,2196.1,1.28023342]
[1750613497210,2.214,2197.1,2196.5,1.2347]
[1750613497401,7.92,2197.1,2196.5,1.2347]
[1750613497602,0.0598,2197.0,2196.5,1.2347]
[1750613498045,7.91,2197.0,2196.5,1.2347]
[1750613498252,0.0598,2196.9,2196.5,1.2347]
[1750613498812,7.91,2197.0,2196.5,1.2347]
[1750613499013,7.92,2196.9,2196.5,1.2347]
[1750613499217,7.92,2196.8,2196.6,0.0564]
[1750613499449,7.92,2196.9,2196.6,0.0564]
[1750613500353,7.9798,2196.9,2196.5,1.2347]
[1750613500566,0.0598,2196.8,2196.5,1.2347]
[1750613501446,7.91,2197.0,2196.5,1.2667]
[1750613501767,7.919,2196.9,2196.5,1.2667]
[1750613502642,7.919,2196.9,2196.6,0.032]
[1750613503722,7.919,2196.9,2196.5,1.2667]
[1750613504757,7.9788,2196.9,2196.5,1.2347]
[1750613505158,7.9788,2196.9,2196.0,0.032]
[1750613505159,0.0598,2196.8,2196.0,0.032]
[1750613505323,0.0598,2196.8,2196.1,1.2626]
[1750613505527,0.0598,2196.8,2196.3,1.2626]
[1750613505927,0.0598,2196.8,2196.0,1.2626]
[1750613506465,0.0598,2196.8,2196.0,1.319]
[1750613507846,0.0598,2196.8,2196.0,1.2626]
[1750613508248,1.2132,2196.7,2196.0,1.2626]
[1750613508450,1.2132,2196.7,2196.0,1.319]
[1750613508451,0.0598,2196.6,2196.0,1.319]
[1750613508871,0.0598,2196.6,2196.0,1.2626]
[1750613511039,7.916,2196.5,2196.1,0.0564]
[1750613511467,0.0598,2196.4,2196.0,1.2626]
[1750613511672,0.0598,2196.3,2196.0,1.2626]
[1750613511873,8.70758,2196.4,2196.0,1.2626]
[1750613512087,0.0598,2196.3,2196.0,1.2626]
[1750613512540,7.91,2196.4,2196.0,1.2626]
[1750613512742,7.91,2196.4,2196.0,1.2946]
[1750613513488,7.915,2196.3,2196.0,1.2946]
[1750613513792,7.915,2196.3,2196.0,1.2626]
[1750613514496,7.977,2196.3,2196.0,1.2626]
[1750613515594,0.062,2196.2,2196.0,1.2626]
[1750613516672,7.977,2196.3,2196.0,1.2626]
[1750613518286,7.915,2196.3,2196.0,1.2626]
[1750613518464,0.062,2196.2,2196.0,1.2626]
[1750613519184,7.915,2196.3,2196.0,1.2626]
[1750613520706,7.977,2196.3,2196.0,1.2626]
[1750613521320,7.915,2196.3,2196.0,1.2626]
[1750613521474,7.91,2196.4,2196.1,0.0265]
[1750613521807,7.912,2196.5,2196.3,0.0265]
[1750613522566,7.912,2196.5,2196.2,1.2131]
[1750613522765,7.912,2196.5,2196.4,1.1876]
[1750613522966,7.912,2196.7,2196.4,1.1611]
[1750613523191,7.912,2196.7,2196.5,1.1611]
[1750613523429,7.912,2196.7,2196.6,0.0265]
[1750613523726,7.912,2196.7,2196.5,1.1611]
[1750613523727,7.912,2196.7,2196.5,1.1876]
[1750613524297,7.912,2196.7,2196.5,1.1611]
[1750613524731,7.911,2196.6,2196.5,1.1611]
[1750613524890,7.911,2196.6,2196.3,1.1611]
[1750613525091,0.062,2196.5,2196.3,1.1611]
[1750613525760,7.973,2196.6,2196.3,1.1611]
[1750613527335,7.973,2196.6,2195.9,1.1611]
[1750613527336,7.972,2196.5,2195.9,1.1611]
[1750613527534,7.972,2196.5,2195.7,1.1611]
[1750613527535,0.062,2196.3,2195.7,1.1611]
[1750613527703,7.91,2196.2,2195.7,1.22]
[1750613528030,7.972,2196.2,2195.7,1.90825037]
[1750613528940,1.1933,2196.4,2195.8,0.0589]
[1750613528941,0.062,2196.4,2195.8,0.0589]
[1750613529100,7.909,2196.1,2195.7,2.31506881]
[1750613529301,7.971,2196.1,2195.7,1.84935037]
[1750613530336,7.909,2196.1,2195.7,1.84935037]
[1750613531003,7.908,2196.0,2195.8,1.9575854]
[1750613531609,7.91,2196.5,2195.9,0.0589]
[1750613531808,7.908,2196.4,2195.9,0.04553464]
[1750613532042,7.908,2196.4,2196.1,1.2653]
[1750613532441,7.908,2196.4,2196.1,1.2064]
[1750613532761,0.062,2196.3,2196.1,1.2064]
[1750613533839,7.908,2196.4,2196.1,1.2064]
[1750613534141,7.97,2196.4,2196.1,1.2064]